Workbook

Sheet паспорт
A1: ПАТ "УКРТРАНСГАЗ" | G1: ПАСПОРТ ФІЗИКО-ХІМІЧНИХ ПОКАЗНИКІВ ПРИРОДНОГО ГАЗУ № 642
A2: Філія УМГ "ХАРКІВТРАНСГАЗ" | G2: переданого Пролетарським ВУПЗГ та прийнятого ПАТ "ДНІПРОПЕТРОВСЬКГАЗ"
A3: Пролетарське ВУПЗГ | G3: Маршрут № 642
A4: Вимірювальна хіміко-аналітична лабораторія
A5: Свідоцтво № ПЧ-07-0/1158-2014 чинно до 22.10.2017 р. | K5: по газопроводу -відгалудженню Пролетарська СПЗГ-ШДКРІ | V5: за період з | X5: 01.03.2017 р. | Z5: по | AA5: 31.03.2017 р.
A7: Число місяця | B7: Компонентний склад, мол. % | N7: Фізико-хімічні показники газу обчислені на основі компонентного складу, 101,325 кПа | X7: Температура точки роси за вологою (Р = 3.92 МПа), °С | Y7: Температура точки роси за вуглеводнями, °С | Z7: Вміст сірководню, г/м3 | AA7: Вміст меркаптанової сірки, г/м3 | AB7: Вміст механічних домішок, г/м3
N8: Густина абсолютна, кг/м3,при 20 °С, | O8: Температура вимірювання/згоряння при 20/25°С
B9: метан, С1 | C9: етан, С2 | D9: пропан, С3 | E9: ізо-бутан, і-С4 | F9: н-бутан, н-С4 | G9: нео-пентан, нео-С5 | H9: ізо-пентан, і-С5 | I9: н-пентан, н-С5 | J9: гексани та вищі, С6+ | K9: кисень, О2 | L9: азот, N2 | M9: діоксид вуглецю, CО2 | O9: Теплота згоряння нижча | R9: Теплота згоряння вища | U9: Число Воббе вище
O10: ккал/м³ | P10: МДж/м³ | Q10: кВт⋅год/м³ | R10: ккал/м³ | S10: МДж/м³ | T10: кВт⋅год/м³ | U10: ккал/м³ | V10: МДж/м³ | W10: кВт⋅год/м³
A11: 1 | O11: =P11*238.8459 -> 8284.656657 | P11: 34.6862 | Q11: =P11/3.6 -> 9.635055556 | R11: =S11*238.8459 -> 9176.459478 | S11: 38.42 | T11: =S11/3.6 -> 10.67222222 | AC11: =SUM(B11:M11)+$K$42+$N$42 -> 0
A12: 2 | O12: =P12*238.8459 -> 8284.656657 | P12: 34.6862 | Q12: =P12/3.6 -> 9.635055556 | R12: =S12*238.8459 -> 9176.459478 | S12: 38.42 | T12: =S12/3.6 -> 10.67222222 | AC12: 0
A13: 3 | B13: 93.5118 | C13: 3.2738 | D13: 0.9456 | E13: 0.1318 | F13: 0.1675 | G13: 0.0029 | H13: 0.043 | I13: 0.033 | J13: 0.1038 | K13: 0.0069 | L13: 1.4926 | M13: 0.2874 | N13: 0.7195 | O13: 8270.493095 | P13: 34.6269 | Q13: 9.618583333 | R13: 9160.982264 | S13: 38.3552 | T13: 10.65422222 | U13: =V13*238.8459 -> 11852.77556 | V13: 49.6252 | W13: =V13/3.6 -> 13.78477778 | Z13: 0.0005 | AA13: 0.002 | AC13: 100.0001 | AD13: =IF(AC13=100,"ОК"," ") -> 
A14: 4 | O14: 8270.493095 | P14: 34.6269 | Q14: 9.618583333 | R14: 9160.982264 | S14: 38.3552 | T14: 10.65422222 | AC14: 0 | AD14: =IF(AC14=100,"ОК"," ") -> 
A15: 5 | O15: 8270.493095 | P15: 34.6269 | Q15: 9.618583333 | R15: 9160.982264 | S15: 38.3552 | T15: 10.65422222 | AC15: 0
A16: 6 | O16: 8270.493095 | P16: 34.6269 | Q16: 9.618583333 | R16: 9160.982264 | S16: 38.3552 | T16: 10.65422222 | AC16: 0
A17: 7 | O17: 8270.493095 | P17: 34.6269 | Q17: 9.618583333 | R17: 9160.982264 | S17: 38.3552 | T17: 10.65422222 | AC17: 0
A18: 8 | O18: 8270.493095 | P18: 34.6269 | Q18: 9.618583333 | R18: 9160.982264 | S18: 38.3552 | T18: 10.65422222 | AC18: 0
A19: 9 | B19: 93.5742 | C19: 3.2478 | D19: 0.948 | E19: 0.132 | F19: 0.1673 | G19: 0.0005 | H19: 0.0416 | I19: 0.0318 | J19: 0.1344 | K19: 0.0062 | L19: 1.4325 | M19: 0.2836 | N19: 0.7198 | O19: 8282.578697 | P19: 34.6775 | Q19: 9.632638889 | R19: 9174.142673 | S19: 38.4103 | T19: 10.66952778 | U19: 11867.22573 | V19: 49.6857 | W19: 13.80158333 | AC19: 99.9999
A20: 10 | B20: 93.5931 | C20: 3.2296 | D20: 0.9423 | E20: 0.1317 | F20: 0.1659 | G20: 0.0004 | H20: 0.0407 | I20: 0.031 | J20: 0.1002 | K20: 0.007 | L20: 1.4775 | M20: 0.2805 | N20: 0.7188 | O20: 8266.002792 | P20: 34.6081 | Q20: =P20/3.6 -> 9.613361111 | R20: 9156.253115 | S20: 38.3354 | T20: =S20/3.6 -> 10.64872222 | U20: 11852.77556 | V20: 49.6252 | W20: 13.78477778 | AC20: 99.9999
A21: 11 | O21: 8266.002792 | P21: 34.6081 | Q21: 9.613361111 | R21: 9156.253115 | S21: 38.3354 | T21: 10.64872222 | AC21: 0
A22: 12 | O22: 8266.002792 | P22: 34.6081 | Q22: 9.613361111 | R22: 9156.253115 | S22: 38.3354 | T22: 10.64872222 | AC22: 0
A23: 13 | O23: 8266.002792 | P23: 34.6081 | Q23: 9.613361111 | R23: 9156.253115 | S23: 38.3354 | T23: 10.64872222 | AC23: 0
A24: 14 | B24: 93.5372 | C24: 3.2843 | D24: 0.9594 | E24: 0.1354 | F24: 0.1716 | G24: 0.0026 | H24: 0.0444 | I24: 0.0341 | J24: 0.1115 | K24: 0.005 | L24: 1.4294 | M24: 0.2852 | N24: 0.7198 | O24: 8282.602582 | P24: 34.6776 | Q24: 9.632666667 | R24: 9174.166557 | S24: 38.4104 | T24: 10.66955556 | U24: 11867.48846 | V24: 49.6868 | W24: 13.80188889 | X24: -8.6 | Y24: -1.5 | AB24: відсутні | AC24: 100.0001
A25: 15 | O25: 8282.602582 | P25: 34.6776 | Q25: 9.632666667 | R25: 9174.166557 | S25: 38.4104 | T25: 10.66955556 | AC25: 0
A26: 16 | O26: 8282.602582 | P26: 34.6776 | Q26: =P26/3.6 -> 9.632666667 | R26: 9174.166557 | S26: 38.4104 | T26: =S26/3.6 -> 10.66955556 | AC26: 0
A27: 17 | O27: 8282.602582 | P27: 34.6776 | Q27: 9.632666667 | R27: 9174.166557 | S27: 38.4104 | T27: 10.66955556 | AC27: 0
A28: 18 | O28: 8282.602582 | P28: 34.6776 | Q28: 9.632666667 | R28: 9174.166557 | S28: 38.4104 | T28: 10.66955556 | AC28: 0
A29: 19 | O29: 8282.602582 | P29: 34.6776 | Q29: 9.632666667 | R29: 9174.166557 | S29: 38.4104 | T29: 10.66955556 | AC29: 0
A30: 20 | O30: 8282.602582 | P30: 34.6776 | Q30: 9.632666667 | R30: 9174.166557 | S30: 38.4104 | T30: 10.66955556 | AC30: 0 | AD30: =IF(AC30=100,"ОК"," ") -> 
A31: 21 | B31: 93.5537 | C31: 3.2167 | D31: 0.9365 | E31: 0.1349 | F31: 0.1691 | G31: 0.0005 | H31: 0.0448 | I31: 0.0339 | J31: 0.1757 | K31: 0.0052 | L31: 1.4411 | M31: 0.2877 | N31: 0.721 | O31: 8293.231224 | P31: 34.7221 | Q31: 9.645027778 | R31: 9185.511738 | S31: 38.4579 | T31: 10.68275 | U31: 11872.12207 | V31: 49.7062 | W31: 13.80727778 | X31: -8.9 | Y31: -1.6 | Z31: 0.0001 | AA31: 0.002 | AC31: 99.9998
A32: 22 | B32: 93.6499 | C32: 3.1832 | D32: 0.9234 | E32: 0.1279 | F32: 0.1635 | G32: 0.0008 | H32: 0.041 | I32: 0.0315 | J32: 0.1316 | K32: 0.0043 | L32: 1.4523 | M32: 0.2907 | N32: 0.7191 | O32: 8270.994671 | P32: 34.629 | Q32: 9.619166667 | R32: 9161.651032 | S32: 38.358 | T32: 10.655 | U32: 11857.14644 | V32: 49.6435 | W32: 13.78986111 | AC32: 100.0001
A33: 23 | B33: 93.6431 | C33: 3.1758 | D33: 0.9219 | E33: 0.1311 | F33: 0.1659 | G33: 0.0006 | H33: 0.041 | I33: 0.0313 | J33: 0.1395 | K33: 0.0049 | L33: 1.4552 | M33: 0.2896 | N33: 0.7193 | O33: 8273.526438 | P33: 34.6396 | Q33: =P33/3.6 -> 9.622111111 | R33: 9164.373875 | S33: 38.3694 | T33: =S33/3.6 -> 10.65816667 | U33: 11858.46009 | V33: 49.649 | W33: 13.79138889 | AC33: 99.9999 | AD33: =IF(AC33=100,"ОК"," ") -> 
A34: 24 | B34: 93.5447 | C34: 3.2281 | D34: 0.9407 | E34: 0.1346 | F34: 0.1715 | G34: 0.0006 | H34: 0.0432 | I34: 0.0332 | J34: 0.1458 | K34: 0.0091 | L34: 1.4586 | M34: 0.2898 | N34: 0.7204 | O34: 8283.151927 | P34: 34.6799 | Q34: 9.633305556 | R34: 9174.644249 | S34: 38.4124 | T34: 10.67011111 | U34: 11863.35643 | V34: 49.6695 | W34: 13.79708333 | AC34: 99.9999
A35: 25 | O35: 8283.151927 | P35: 34.6799 | Q35: 9.633305556 | R35: 9174.644249 | S35: 38.4124 | T35: 10.67011111 | AC35: 0
A36: 26 | O36: 8283.151927 | P36: 34.6799 | Q36: 9.633305556 | R36: 9174.644249 | S36: 38.4124 | T36: =S36/3.6 -> 10.67011111 | AC36: 0
A37: 27 | B37: 93.6997 | C37: 3.1807 | D37: 0.9223 | E37: 0.1302 | F37: 0.1654 | G37: 0.0038 | H37: 0.0425 | I37: 0.0327 | J37: 0.1096 | K37: 0.0047 | L37: 1.4182 | M37: 0.2903 | N37: 0.7184 | O37: 8268.845058 | P37: 34.62 | Q37: 9.616666667 | R37: 9159.45365 | S37: 38.3488 | T37: 10.65244444 | U37: 11859.5349 | V37: 49.6535 | W37: 13.79263889 | AB37: відсутні | AC37: 100.0001
A38: 28 | B38: 93.7591 | C38: 3.1639 | D38: 0.9106 | E38: 0.1271 | F38: 0.1604 | G38: 0.0025 | H38: 0.0399 | I38: 0.0304 | J38: 0.1317 | K38: 0.0035 | L38: 1.383 | M38: 0.2881 | N38: 0.7184 | O38: 8273.168169 | P38: 34.6381 | Q38: 9.621694444 | R38: 9164.206683 | S38: 38.3687 | T38: 10.65797222 | U38: 11866.41366 | V38: 49.6823 | W38: 13.80063889 | X38: -8.7 | Y38: -1.8 | AC38: 100.0002
A39: 29 | O39: 8273.168169 | P39: 34.6381 | Q39: 9.621694444 | R39: 9164.206683 | S39: 38.3687 | T39: 10.65797222 | AC39: 0
A40: 30 | B40: 93.568 | C40: 3.1405 | D40: 0.8852 | E40: 0.1266 | F40: 0.1561 | G40: 0.0029 | H40: 0.0434 | I40: 0.0314 | J40: 0.1776 | K40: 0.0061 | L40: 1.5742 | M40: 0.288 | N40: 0.7203 | O40: 8267.55529 | P40: 34.6146 | Q40: 9.615166667 | R40: 9157.614536 | S40: 38.3411 | T40: 10.65030556 | U40: 11842.12303 | V40: 49.5806 | W40: 13.77238889 | AC40: 100
A41: 31 | B41: 93.5874 | C41: 3.1168 | D41: 0.8812 | E41: 0.1256 | F41: 0.1569 | G41: 0.0026 | H41: 0.0454 | I41: 0.0336 | J41: 0.1265 | K41: 0.0083 | L41: 1.6312 | M41: 0.2845 | N41: 0.7189 | O41: 8246.250236 | P41: 34.5254 | Q41: 9.590388889 | R41: 9134.613676 | S41: 38.2448 | T41: 10.62355556 | U41: 11823.39751 | V41: 49.5022 | W41: 13.75061111 | AC41: 100 | AD41: ОК
A42: Рівень одоризації відповідає чинним нормативним документам | O42: =SUMPRODUCT(O11:O41,' розрахунок'!D7:D37)/' розрахунок'!D38 -> 8275.701527 | P42: =SUMPRODUCT(P11:P41,' розрахунок'!D7:D37)/' розрахунок'!D38 -> 34.64870667 | Q42: =SUMPRODUCT(Q11:Q41,' розрахунок'!D7:D37)/' розрахунок'!D38 -> 9.62464074 | R42: =SUMPRODUCT(R11:R41,' розрахунок'!D7:D37)/' розрахунок'!D38 -> 9166.698509 | S42: =SUMPRODUCT(S11:S41,' розрахунок'!D7:D37)/' розрахунок'!D38 -> 38.37913278 | T42: =SUMPRODUCT(T11:T41,' розрахунок'!D7:D37)/' розрахунок'!D38 -> 10.66087022
H43: Середньозважене значення теплоти згоряння:
B46: Начальник управління Пролетарського ВУПЗГ | O46: Андрусів В.М. | V46: 03.04.2017 р.
C47: Підрозділу підприємства, якому підпорядкована лабораторія | O47: прізвище | R47: підпис | V47: дата
B48: Завідувач лабораторії | O48: Рекунович В.В. | V48: 03.04.2017 р.
C49: Лабораторія, де здійснювалось вимірювання газу | O49: прізвище | R49: підпис | V49: дата
B50: Інженер з метрології ІІ кат | O50: Поліщук О.С. | V50: 03.04.2017 р.
C51: Підрозділу, відповідального за облік газу за маршрутом | O51: прізвище | R51: підпис | V51: дата

Sheet розрахунок (hidden)
A2: Додаток до Паспорту фізико-хімічних показників природного газу по маршруту № 642
A4: Число місяця | B4: Теплота згоряння вища, МДж/м3 | C4: Дніпропетровська область | D4: Загальний обсяг газу, м3
C5: Обсяг газу переданого за добу, м3
C6: АГРС-1/3
A7: 1 | B7: =паспорт!S11 -> 38.42 | C7: 419 | D7: =SUM(C7:C7) -> 419
A8: 2 | B8: =паспорт!S12 -> 38.42 | C8: 324 | D8: 324
A9: 3 | B9: =паспорт!S13 -> 38.3552 | C9: 329 | D9: 329
A10: 4 | B10: =паспорт!S14 -> 38.3552 | C10: 339 | D10: 339
A11: 5 | B11: =паспорт!S15 -> 38.3552 | C11: 332 | D11: 332
A12: 6 | B12: =паспорт!S16 -> 38.3552 | C12: 332 | D12: 332
A13: 7 | B13: =паспорт!S17 -> 38.3552 | C13: 309 | D13: 309
A14: 8 | B14: =паспорт!S18 -> 38.3552 | C14: 326 | D14: 326
A15: 9 | B15: =паспорт!S19 -> 38.4103 | C15: 282 | D15: 282
A16: 10 | B16: =паспорт!S20 -> 38.3354 | C16: 279 | D16: 279
A17: 11 | B17: =паспорт!S21 -> 38.3354 | C17: 217 | D17: 217
A18: 12 | B18: =паспорт!S22 -> 38.3354 | C18: 405 | D18: 405
A19: 13 | B19: =паспорт!S23 -> 38.3354 | C19: 364 | D19: 364
A20: 14 | B20: =паспорт!S24 -> 38.4104 | C20: 391 | D20: 391
A21: 15 | B21: =паспорт!S25 -> 38.4104 | C21: 267 | D21: 267
A22: 16 | B22: =паспорт!S26 -> 38.4104 | C22: 386 | D22: 386
A23: 17 | B23: =паспорт!S27 -> 38.4104 | C23: 208 | D23: 208
A24: 18 | B24: =паспорт!S28 -> 38.4104 | C24: 281 | D24: 281
A25: 19 | B25: =паспорт!S29 -> 38.4104 | C25: 245 | D25: 245
A26: 20 | B26: =паспорт!S30 -> 38.4104 | C26: 396 | D26: 396
A27: 21 | B27: =паспорт!S31 -> 38.4579 | C27: 257 | D27: 257
A28: 22 | B28: =паспорт!S32 -> 38.358 | C28: 164 | D28: 164
A29: 23 | B29: =паспорт!S33 -> 38.3694 | C29: 198 | D29: 198
A30: 24 | B30: =паспорт!S34 -> 38.4124 | C30: 142 | D30: 142
A31: 25 | B31: =паспорт!S35 -> 38.4124 | C31: 134 | D31: 134
A32: 26 | B32: =паспорт!S36 -> 38.4124 | C32: 200 | D32: 200
A33: 27 | B33: =паспорт!S37 -> 38.3488 | C33: 382 | D33: 382
A34: 28 | B34: =паспорт!S38 -> 38.3687 | C34: 281 | D34: 281
A35: 29 | B35: =паспорт!S39 -> 38.3687 | C35: 158 | D35: 158
A36: 30 | B36: =паспорт!S40 -> 38.3411 | C36: 107 | D36: 107
A37: 31 | B37: =паспорт!S41 -> 38.2448 | C37: 113 | D37: 113
A38: Загальний обсяг газу, м3 | C38: =SUM(C7:C37) -> 8567 | D38: =SUM(D7:D37) -> 8567
A39: Енергія, МДж | C39: =SUMPRODUCT(B7:B37,C7:C37) -> 328794.0305 | D39: =SUMPRODUCT(B7:B37,D7:D37) -> 328794.0305
A40: Теплота згоряння (середньозважене значення за місяць), МДж/м³ | C40: =C39/C38 -> 38.37913278 | D40: 38.37913278
A41: Теплота згоряння (середньозважене значення за місяць), ккал/м³ | C41: =C40*238.8459 -> 9166.698509 | D41: 9166.698509
A42: Теплота згоряння (середньозважене значення за місяць), кВт*год./м³ | C42: =C40/3.6 -> 10.66087022 | D42: 10.66087022

Sheet додаток
B1: Додаток до Паспорту фізико-хімічних показників природного газу № 642
B3: Область | C3: ГРС, прямий споживач | D3: Cередньозважене значення вищої теплоти згоряння
D4: МДж/м³ | E4: ккал/м³ | F4: кВт*год./м³
B5: Дніпропетровська область | C5: АГРС-1/3 Пролетарська | D5: =' розрахунок'!C40 -> 38.37913278 | E5: =' розрахунок'!C41 -> 9166.698509 | F5: =' розрахунок'!C42 -> 10.66087022
B6: Середньозважене значення вищої теплоти згоряння по маршруту № 642 | D6: =' розрахунок'!C40 -> 38.37913278 | E6: =' розрахунок'!C41 -> 9166.698509 | F6: =' розрахунок'!C42 -> 10.66087022
B10: Начальник управління Пролетарського ВУПЗГ | E10: Андрусів В.М. | G10: 03.04.2017 р
B11: Підрозділу підприємства, якому підпорядкована лабораторія | E11: прізвище | F11: підпис | G11: дата
B12: Завідувач лабораторії | E12: Рекунович В.В. | G12: 03.04.2017 р.
B13: Лабораторія, де здійснювалось вимірювання газу | E13: прізвище | F13: підпис | G13: дата
B14: Інженер з метрології ІІ кат | E14: Поліщук О.С. | G14: 03.04.2017 р.
B15: Підрозділу, відповідального за облік газу за маршрутом | E15: прізвище | F15: підпис | G15: дата

Sheet variablesList (hidden)
A1: 3 | B1: x:\gaysin | C1: 10, 11, 24, 25, 127, 128, 132, 180, 207, 215 | D1: x:\
B2: x:\Illinci
B3: x:\Talne
